fUSD/lending_fUSD_20260118
["ID","MTS","AMOUNT","RATE_DAILY","PERIOD"]
[402656009,1768751442594,-457.5530659,0.000179,2]
[402656010,1768751442603,-207.07990023,0.000179,2]
[402656011,1768751442613,-1321.0,0.00017911,2]
[402656012,1768751442622,-4344.0,0.00017922,2]
[402656013,1768751442632,-150.0,0.00017935,2]
[402656014,1768751442641,-496.07999998,0.00017958,2]
[402656015,1768751442651,-958.85,0.00017958,2]
[402656016,1768751442660,-700.0,0.0001797,2]
[402656017,1768751442669,-700.0,0.0001797,2]
[402656018,1768751442678,-700.0,0.0001797,2]
[402656019,1768751442688,-1203.47014443,0.0001797,2]
[402656020,1768751442697,-400.0,0.0001797,2]
[402656021,1768751442707,-400.0,0.0001797,2]
[402656022,1768751442716,-591.85228953,0.0001797,2]
[402656023,1768751442726,-500.0,0.00017972,2]
[402656024,1768751442736,-500.0,0.00017972,2]
[402656025,1768751442746,-500.0,0.00017972,2]
[402656026,1768751442756,-500.0,0.00017972,2]
[402656027,1768751442766,-765.0,0.00017973,2]
[402656028,1768751442775,-1085.0,0.00017973,2]
[402656029,1768751442785,-499.528,0.00017973,2]
[402656030,1768751442794,-150.0,0.00017973,2]
[402656031,1768751442803,-500.0,0.00017973,2]
[402656032,1768751442812,-500.0,0.00017973,2]
[402656033,1768751442822,-500.0,0.00017973,2]
[402656034,1768751442832,-500.0,0.00017973,2]
[402656035,1768751442841,-500.0,0.00017973,2]
[402656036,1768751442850,-500.0,0.00017973,2]
[402656037,1768751442860,-500.0,0.00017973,2]
[402656038,1768751442869,-500.0,0.00017973,2]
[402656039,1768751442879,-500.0,0.00017973,2]
[402656040,1768751442889,-500.0,0.00017973,2]
[402656041,1768751442899,-500.0,0.00017973,2]
[402656042,1768751442909,-600.0,0.00017973,2]
[402656043,1768751442918,-500.0,0.00017973,2]
[402656044,1768751442927,-500.0,0.00017973,2]
[402656045,1768751442937,-150.0,0.00017973,2]
[402656046,1768751442947,-3550.67053888,0.00017982,2]
[402656047,1768751442969,-882.32946112,0.00017982,2]
[402656048,1768751442980,-500.0,0.00017982,2]
[402656049,1768751442990,-1212.42298523,0.0001799,2]
[402656050,1768751442999,-1212.42298523,0.0001799,2]
[402656051,1768751443008,-1212.42298523,0.0001799,2]
[402656052,1768751443018,-500.0,0.00017996,2]
[402656053,1768751443027,-551.83023748,0.00017996,2]
[402656054,1768751443036,-500.0,0.00017996,2]
[402656055,1768751443047,-500.0,0.00017996,2]
[402656057,1768751443056,-500.0,0.00017996,2]
[402656058,1768751443065,-500.0,0.00017996,2]
[402656059,1768751443074,-262.74979017,0.00017999,2]
[402656062,1768751443084,-511.63328925,0.00017999,2]
[402656065,1768751443097,-486.66435485,0.00017999,2]
[402656067,1768751443113,-300.0,0.00017999,2]
[402656069,1768751443123,-500.0,0.00017999,2]
[402656071,1768751443132,-500.0,0.00017999,2]
[402656072,1768751443142,-500.0,0.00017999,2]
[402656073,1768751443151,-406.03888,0.00017999,2]
[402656074,1768751443160,-459.23021459,0.00017999,2]
[402656077,1768751443401,-40.76978541,0.00017999,2]
[402656078,1768751443414,-500.0,0.00017999,2]
[402656079,1768751443423,-500.0,0.00017999,2]
[402656080,1768751443432,-299.22518177,0.00017999,2]
[402656081,1768751443443,-200.77481823,0.00017999,2]
[402656082,1768751443452,-387.22518177,0.00017999,2]
[402656083,1768751443463,-112.77481823,0.00017999,2]
[402656084,1768751443472,-500.0,0.00017999,2]
[402656085,1768751443483,-500.0,0.00017999,2]
[402656086,1768751443492,-108.64388736,0.00017999,2]
[402656087,1768751443503,-391.35611264,0.00017999,2]
[402656088,1768751443513,-500.0,0.00017999,2]
[402656089,1768751443522,-152.19854584,0.00017999,2]
[402656090,1768751443534,-347.80145416,0.00017999,2]
[402656091,1768751443547,-500.0,0.00017999,2]
[402656092,1768751443556,-500.0,0.00017999,2]
[402656093,1768751443566,-500.0,0.00017999,2]
[402656094,1768751443575,-500.0,0.00017999,2]
[402656096,1768751443584,-500.0,0.00017999,2]
[402656097,1768751443593,-388.31928708,0.00017999,2]
[402656098,1768751443603,-500.0,0.00017999,2]
[402656099,1768751443612,-519.55038002,0.00017999,2]
[402656100,1768751443622,-666.0,0.00017999,2]
[402656101,1768751443631,-155.0,0.00017999,2]
[402656103,1768751443640,-205.78351323,0.00017999,2]
[402656107,1768751443676,-336.15442434,0.00017999,2]
[402656108,1768751443685,-500.0,0.00017999,2]
[402656109,1768751443695,-500.0,0.00017999,2]
[402656110,1768751443705,-500.0,0.00017999,2]
[402656111,1768751443714,-572.95022349,0.00017999,2]
[402656112,1768751443724,-300.0,0.00017999,2]
[402656113,1768751443734,-567.8712304,0.00018,2]
[402656114,1768751443743,-1303.8495492,0.00018,2]
[402656115,1768751443752,-1002.61682753,0.00018,2]
[402656116,1768751443762,-1977579.38096597,0.00018,2]
[402656117,1768751443771,-194.0,0.00018,5]
[402656118,1768751443780,-500.0,0.00018,2]
[402656119,1768751443790,-500.0,0.00018,2]
[402656120,1768751443798,-500.0,0.00018,2]
[402656121,1768751443809,-500.0,0.00018,2]
[402656122,1768751443818,-500.0,0.00018,2]
[402656123,1768751443827,-500.0,0.00018,2]
[402656124,1768751443837,-500.0,0.00018,2]
[402656125,1768751443845,-500.0,0.00018,2]
[402656126,1768751443854,-500.0,0.00018,2]
[402656127,1768751443863,-500.0,0.00018,2]
[402656128,1768751443873,-500.0,0.00018,2]
[402656129,1768751443882,-500.0,0.00018,2]
[402656130,1768751443891,-500.0,0.00018,2]
[402656131,1768751443901,-500.0,0.00018,2]
[402656132,1768751443911,-500.0,0.00018,2]
[402656133,1768751443920,-500.0,0.00018,2]
[402656134,1768751443929,-500.0,0.00018,2]
[402656135,1768751443938,-500.0,0.00018,2]
[402656136,1768751443947,-500.0,0.00018,2]
[402656137,1768751443957,-500.0,0.00018,2]
[402656138,1768751443966,-500.0,0.00018,2]
[402656139,1768751443975,-500.0,0.00018,2]
[402656140,1768751443984,-500.0,0.00018,2]
[402656141,1768751443993,-500.0,0.00018,2]
[402656142,1768751444003,-500.0,0.00018,2]
[402656143,1768751444013,-500.0,0.00018,2]
[402656144,1768751444022,-397.5,0.00018,2]
[402656145,1768751444032,-813.9331909,0.00018,4]
[402656146,1768751444042,-74319.70235745,0.00018,2]
[402656147,1768751444051,-29198.68826686,0.00018,4]
[402656148,1768751444060,-151841.72110102,0.00018,2]
[402656149,1768751444074,-9461.5,0.00018,2]
[402656150,1768751444085,-512.27802841,0.00018,2]
[402656151,1768751444175,-94800.0,0.00018,2]
[402656152,1768751444188,-11877.27714,0.00018,2]
[402656153,1768751444200,-258.25526145,0.00018,2]
[402656154,1768751444211,-503.923742,0.00018,2]
[402656155,1768751444222,-502.99139351,0.00018,2]
[402656156,1768751444234,-2433.80048799,0.00018,2]
[402656157,1768751444253,-2045.39356299,0.00018,2]
[402656158,1768751444263,-834.90360017,0.00018,2]
[402656159,1768751444274,-1218.10437464,0.00018,2]
[402656160,1768751444286,-290652.88746278,0.00018,2]
[402656161,1768751444297,-2348.81410111,0.00018,2]
[402656162,1768751444308,-2287.30477774,0.00018,2]
[402656163,1768751444320,-633.92371775,0.00018,2]
[402656164,1768751444331,-637.30701203,0.00018,2]
[402656165,1768751444343,-1035.94218875,0.00018,2]
[402656166,1768751444354,-1014.09508778,0.00018,2]
[402656167,1768751444511,-162.20792796,0.00018,2]
[402656182,1768751446220,-280.65965501,0.00015766,2]
[402656183,1768751446610,-219.34034499,0.00015766,2]
[402656184,1768751446621,-143.35811253,0.0001604,2]
[402656196,1768751543037,500.0,0.00015257,2]
[402656197,1768751569778,600.0,0.00027397,120]
[402656198,1768751572859,600.0,0.00027397,120]
[402656199,1768751575760,600.0,0.00027397,120]
[402656200,1768751578791,600.0,0.00027397,120]
[402656201,1768751581766,600.0,0.00027397,120]
[402656202,1768751584775,600.0,0.00027397,120]
[402656203,1768751587776,600.0,0.00027397,120]
[402656204,1768751590764,600.0,0.00027397,120]
[402656205,1768751594155,600.0,0.00027397,120]
[402656206,1768751596767,600.0,0.00027397,120]
[402656207,1768751599768,600.0,0.00027397,120]
[402656208,1768751603325,600.0,0.00027397,120]
[402656209,1768751605767,600.0,0.00027397,120]
[402656210,1768751608773,600.0,0.00027397,120]
[402656211,1768751611783,600.0,0.00027397,120]
[402656212,1768751615115,600.0,0.00027397,120]
[402656213,1768751617781,400.0,0.00027397,120]
[402656214,1768751641119,636.53,0.000254,120]
[402656217,1768751833390,1566.0,0.00027397,120]
[402656222,1768752324275,166.66,0.00014526,2]
[402656223,1768752324523,166.66,0.00014832,2]
[402656224,1768752324776,166.66,0.00015137,2]
[402656225,1768752334135,168.22,0.00015154,2]
[402656226,1768752468233,200.0,0.00015076,2]
[402656227,1768752491077,-1221.33,0.00015352,2]
[402656228,1768752491101,-300.0,0.00015352,2]
[402656229,1768752491127,-195.0,0.00015352,2]
[402656230,1768752491159,-173.472,0.00015352,2]
[402656231,1768752491187,-300.0,0.00015422,2]
[402656232,1768752491210,-372.87207282,0.00015422,2]
[402656233,1768752491235,-166.66,0.00015443,2]
[402656234,1768752491259,-195.0,0.00015486,2]
[402656235,1768752491283,-253.3016,0.00015566,2]
[402656236,1768752491306,-280.0,0.00015566,2]
[402656237,1768752491328,-205.83530955,0.00015594,2]
[402656238,1768752491354,-183.32129455,0.00015649,2]
[402656239,1768752491376,-300.0,0.00015663,2]
[402656240,1768752491399,-1200.0,0.00015664,2]
[402656241,1768752491422,-295.0,0.00015664,2]
[402656242,1768752491445,-156.38061529,0.00015665,2]
[402656243,1768752491474,-177.40444447,0.00015665,2]
[402656244,1768752491497,-134.42266332,0.00015665,2]
[402656245,1768752506251,1500.0,0.00027397,120]
[402656246,1768752553129,-300.0,0.00015664,2]
[402656247,1768752553151,-300.0,0.00015664,2]
[402656248,1768752553173,-250.0,0.00015664,2]
[402656249,1768752553193,-150.0,0.00015665,2]
[402656250,1768752553215,-125.2799548,0.00015665,2]
[402656251,1768752553240,-500.0,0.00015665,2]
[402656252,1768752553266,-500.0,0.00015665,2]
[402656253,1768752553294,-504.56648443,0.00015665,2]
[402656254,1768752553319,-500.0,0.00015665,2]
[402656255,1768752553343,-500.0,0.00015665,2]
[402656256,1768752553367,-500.0,0.00015665,2]
[402656257,1768752553392,-500.0,0.00015665,2]
[402656258,1768752553417,-500.0,0.00015665,2]
[402656259,1768752553438,-264.26319077,0.00015665,2]
[402656271,1768752631397,-860.0,0.00015566,2]
[402656272,1768752631408,-2010.45162671,0.00015566,2]
[402656273,1768752631420,-344.81,0.00015566,2]
[402656274,1768752631431,-477.97880591,0.00015566,2]
[402656275,1768752631442,-1060.92728506,0.00015566,2]
[402656276,1768752631453,-282.33286881,0.00015566,2]
[402656277,1768752631464,-1342.64096061,0.00015566,2]
[402656278,1768752631476,-18919.76213138,0.00015566,2]
[402656279,1768752631488,-534.80482,0.00015566,2]
[402656280,1768752631504,-387.32183681,0.00015566,2]
[402656281,1768752631522,-377.4,0.00015566,2]
[402656282,1768752631534,-2354.96308394,0.00015566,2]
[402656283,1768752631545,-824.83,0.00015566,2]
[402656284,1768752631561,-6374.08985714,0.00015566,2]
[402656285,1768752631573,-2621.96661148,0.00015566,2]
[402656286,1768752631585,-3124.78462949,0.00015566,2]
[402656287,1768752631600,-1794.47750331,0.00015566,2]
[402656297,1768752637492,-4800.41787571,0.00015566,2]
[402656298,1768752637508,-4273.07507087,0.00015566,2]
[402656299,1768752637519,-1443.45977058,0.00015566,2]
[402656300,1768752637548,-267.0,0.00015566,2]
[402656301,1768752637613,-5779.581505,0.00015566,2]
[402656315,1768752637805,-311.59230723,0.00015566,2]
[402656333,1768752639576,-6456.96192333,0.00015566,2]
[402656335,1768752639588,-29252.56472663,0.00015566,2]
[402656338,1768752639597,-3898.225917,0.00015627,2]
[402656340,1768752639607,-280.0,0.00015627,2]
[402656342,1768752639617,-1200.0,0.00015664,2]
[402656344,1768752639627,-300.92425257,0.00015665,2]
[402656346,1768752639638,-500.0,0.00015665,2]
[402656348,1768752639648,-500.0,0.00015665,2]
[402656350,1768752639658,-500.0,0.00015665,2]
[402656352,1768752639668,-500.0,0.00015665,2]
[402656354,1768752639677,-250.0,0.00015727,2]
[402656356,1768752639687,-166.66,0.00015749,2]
[402656358,1768752639697,-3898.22591698,0.0001588,2]
[402656360,1768752639706,-151.0,0.00015895,2]
[402656362,1768752639717,-151.0,0.00015895,2]
[402656364,1768752639726,-166.67,0.00015903,2]
[402656366,1768752639736,-900.17,0.0001592,2]
[402656368,1768752639746,-384.28123758,0.00015973,2]
[402656370,1768752639755,-1733.7620927,0.00016016,2]
[402656372,1768752639765,-166.66,0.00016055,2]
[402656373,1768752639775,-67046.62,0.00016104,2]
[402656374,1768752639784,-9999.99,0.00016116,2]
[402656376,1768752639798,-7639.55,0.00016116,2]
[402656378,1768752639808,-987.67,0.00016116,2]
[402656379,1768752639818,-3898.22591698,0.00016132,2]
[402656380,1768752639828,-1733.7620927,0.00016225,2]
[402656381,1768752639837,-1386.11,0.00016226,2]
[402656382,1768752639847,-500.0,0.00016291,2]
[402656383,1768752639857,-887.21,0.00016291,2]
[402656384,1768752639866,-446.76047956,0.00016337,2]
[402656385,1768752639876,-500.0,0.00016337,2]
[402656386,1768752639885,-336.15442434,0.00016337,2]
[402656387,1768752639895,-3898.22591698,0.00016385,2]
[402656388,1768752639905,-200.0,0.00016399,2]
[402656389,1768752639915,-1733.7620927,0.00016435,2]
[402656390,1768752639924,-500.0,0.00016438,2]
[402656391,1768752639934,-500.0,0.00016438,2]
[402656392,1768752639944,-420.62275424,0.00016438,2]
[402656393,1768752639954,-900.17,0.00016517,2]
[402656394,1768752639963,-356.64188747,0.00016565,2]
[402656395,1768752639973,-3898.22591698,0.00016637,2]
[402656396,1768752639984,-159.76,0.00016712,2]
[402656397,1768752639994,-3449.62,0.0001675,2]
[402656398,1768752640003,-3898.22591698,0.0001689,2]
[402656399,1768752640013,-636.53,0.00016933,2]
[402656400,1768752640023,-3543.0,0.00016951,2]
[402656401,1768752640033,-1500.0,0.00016965,2]
[402656402,1768752640042,-250.0,0.00017,2]
[402656403,1768752640053,-183.88,0.00017038,2]
[402656404,1768752640062,-500.0,0.00017098,2]
[402656405,1768752640072,-833.19,0.00017099,2]
[402656406,1768752640081,-1239.0,0.00017099,2]
[402656407,1768752640091,-500.0,0.00017099,2]
[402656408,1768752640101,-574.12855637,0.00017099,2]
[402656409,1768752640110,-500.0,0.00017099,2]
[402656410,1768752640120,-500.0,0.00017099,2]
[402656411,1768752640129,-2000.0,0.00017099,2]
[402656412,1768752640139,-500.0,0.00017099,2]
[402656413,1768752640148,-2000.0,0.00017099,2]
[402656414,1768752640158,-2000.0,0.00017099,2]
[402656415,1768752640167,-500.0,0.00017099,2]
[402656416,1768752640176,-2000.0,0.00017099,2]
[402656417,1768752640186,-500.0,0.00017099,2]
[402656418,1768752640197,-1971.23237798,0.00017099,2]
[402656419,1768752640206,-500.0,0.00017099,2]
[402656420,1768752640215,-500.0,0.00017099,2]
[402656421,1768752640225,-1000.0,0.00017099,2]
[402656422,1768752640235,-1000.0,0.00017099,2]
[402656423,1768752640244,-678.81745553,0.00017099,2]
[402656424,1768752640253,-250.0,0.00017099,2]
[402656425,1768752640262,-250.0,0.00017099,2]
[402656426,1768752640271,-1000.0,0.00017099,2]
[402656427,1768752640280,-250.0,0.00017099,2]
[402656428,1768752640289,-1000.0,0.00017099,2]
[402656429,1768752640299,-250.0,0.00017099,2]
[402656430,1768752640308,-250.0,0.00017099,2]
[402656431,1768752640318,-250.0,0.00017099,2]
[402656432,1768752640327,-1000.0,0.00017099,2]
[402656433,1768752640336,-250.0,0.00017099,2]
[402656434,1768752640345,-250.0,0.00017099,2]
[402656435,1768752640354,-250.0,0.00017099,2]
[402656436,1768752640364,-250.0,0.00017099,2]
[402656437,1768752640373,-250.0,0.00017099,2]
[402656438,1768752640382,-1000.0,0.00017099,2]
[402656439,1768752640392,-1000.0,0.00017099,2]
[402656440,1768752640401,-1000.0,0.00017099,2]
[402656441,1768752640411,-1000.0,0.00017099,2]
[402656442,1768752640420,-620.0,0.00017099,2]
[402656443,1768752640432,-1000.0,0.00017099,2]
[402656444,1768752640442,-1000.0,0.00017099,2]
[402656445,1768752640451,-1000.0,0.00017099,2]
[402656446,1768752640461,-1000.0,0.00017099,2]
[402656447,1768752640471,-1500.0,0.00017099,2]
[402656448,1768752640481,-1500.0,0.00017099,2]
[402656449,1768752640490,-1000.0,0.00017099,2]
[402656450,1768752640501,-887.21,0.00017106,2]
[402656451,1768752640510,-900.17,0.00017114,2]
[402656452,1768752640519,-195.0,0.00017122,2]
[402656453,1768752640529,-420.0,0.00017132,2]
[402656454,1768752640538,-3898.22591698,0.00017142,2]
[402656455,1768752640548,-166.67,0.00017215,2]
[402656456,1768752640557,-1154.0,0.00017218,2]
[402656457,1768752640567,-250.0,0.0001723,2]
[402656458,1768752640577,-1000.0,0.0001726,2]
[402656459,1768752640587,-833.19,0.00017373,2]
[402656460,1768752640596,-3898.22591698,0.00017395,2]
[402656461,1768752640606,-1000.0,0.00017534,2]
[402656462,1768752640616,-753.64504633,0.0001764,2]
[402656463,1768752640625,-833.19,0.00017647,2]
[402656464,1768752640635,-595.37131296,0.00017647,2]
[402656465,1768752640644,-3898.22591698,0.00017647,2]
[402656466,1768752640654,-757.0,0.00017705,2]
[402656467,1768752640663,-900.17,0.00017711,2]
[402656468,1768752640672,-915.0,0.00017715,2]
[402656469,1768752640681,-1202.0,0.00017715,2]
[402656470,1768752640690,-2439.0,0.00017767,2]
[402656471,1768752640700,-4826.0,0.00017767,2]
[402656472,1768752640709,-566.0,0.00017767,2]
[402656473,1768752640718,-1000.0,0.00017808,2]
[402656474,1768752640729,-444.44444,0.0001782,2]
[402656475,1768752640738,-444.44445,0.0001782,2]
[402656476,1768752640748,-200.0,0.00017856,2]
[402656477,1768752640757,-150.0,0.00017858,2]
[402656478,1768752640767,-183.32129454,0.000179,2]
[402656479,1768752640776,-3898.22591698,0.000179,2]
[402656480,1768752640786,-887.21,0.00017921,2]
[402656481,1768752640796,-833.19,0.00017921,2]
[402656482,1768752640806,-500.0,0.0001797,2]
[402656483,1768752640816,-163.05468089,0.00017973,2]
[402656484,1768752640825,-500.0,0.00017973,2]
[402656485,1768752640835,-162.94332496,0.00017973,2]
[402656486,1768752640845,-500.0,0.00017973,2]
[402656487,1768752640855,-500.0,0.00017973,2]
[402656488,1768752640864,-500.0,0.00017973,2]
[402656489,1768752640874,-207.9118862,0.00017973,2]
[402656490,1768752640884,-500.0,0.00017973,2]
[402656491,1768752640894,-500.0,0.00017973,2]
[402656492,1768752640903,-521.00835469,0.00017973,2]
[402656493,1768752640913,-500.0,0.00017973,2]
[402656494,1768752641244,-227.35473461,0.00017973,2]
[402656495,1768752641255,-160.14327133,0.00017973,2]
[402656496,1768752641264,-500.0,0.00017973,2]
[402656497,1768752641273,-500.0,0.00017973,2]
[402656498,1768752641283,-335.60070547,0.00017973,2]
[402656499,1768752641292,-159.89481384,0.00017973,2]
[402656500,1768752641301,-159.8932132,0.00017973,2]
[402656501,1768752641311,-157.91350801,0.00017973,2]
[402656502,1768752641320,-500.0,0.00017973,2]
[402656503,1768752641330,-150.72792305,0.00017973,2]
[402656504,1768752641339,-500.0,0.00017973,2]
[402656505,1768752641349,-500.0,0.00017973,2]
[402656506,1768752641358,-161.58480125,0.00017973,2]
[402656507,1768752641368,-500.0,0.00017973,2]
[402656508,1768752641378,-150.0,0.00017973,2]
[402656509,1768752641388,-500.0,0.00017973,2]
[402656510,1768752641397,-558.27559747,0.00017973,2]
[402656511,1768752641407,-336.00617489,0.00017973,2]
[402656512,1768752641417,-500.0,0.00017973,2]
[402656513,1768752641427,-500.0,0.00017973,2]
[402656514,1768752641437,-500.0,0.00017973,2]
[402656515,1768752641447,-500.0,0.00017973,2]
[402656516,1768752641457,-500.0,0.00017973,2]
[402656517,1768752641467,-159.89321272,0.00017973,2]
[402656518,1768752641477,-500.0,0.00017973,2]
[402656519,1768752641486,-500.0,0.00017973,2]
[402656520,1768752641498,-159.89481297,0.00017973,2]
[402656521,1768752641508,-500.0,0.00017973,2]
[402656522,1768752641517,-500.0,0.00017973,2]
[402656523,1768752641527,-150.0,0.00017973,2]
[402656524,1768752641538,-180.9314396,0.00017976,2]
[402656525,1768752641548,-150.0,0.00017985,2]
[402656526,1768752641557,-165.17,0.00017988,2]
[402656527,1768752641568,-17169.1312813,0.00017998,2]
[402656528,1768752641578,-12639.270166,0.00017998,2]
[402656529,1768752641587,-3520.3585386,0.00017998,2]
[402656530,1768752641598,-173550.745924,0.00017998,2]
[402656531,1768752641608,-567.8712304,0.00017999,2]
[402656532,1768752641618,-162.4116826,0.00017999,2]
[402656533,1768752641627,-500.0,0.00017999,2]
[402656534,1768752641636,-500.0,0.00017999,2]
[402656535,1768752641646,-545.29885245,0.00017999,2]
[402656536,1768752641655,-300.0,0.00017999,2]
[402656537,1768752641664,-1002.61682753,0.00018,2]
[402656538,1768752641674,-1781106.10103511,0.00018,2]
[402656539,1768752641692,-3828.86735665,0.00018,2]
[402656540,1768752641703,-5678.50813704,0.00018,2]
[402656541,1768752641714,-943.49055009,0.00018,2]
[402656542,1768752641726,-1890.52566694,0.00018,2]
[402656543,1768752641770,-2323.398704,0.00018,2]
[402656544,1768752641782,-628.45498359,0.00018,2]
[402656545,1768752641793,-335.92243877,0.00018,2]
[402656572,1768752642688,-1188.10801249,0.00018,2]
[402656573,1768752645569,-151.0,0.0001623,2]
[402656574,1768752645580,-1733.7620927,0.00016644,2]
[402656575,1768752645589,-1243.67075674,0.00018,2]
[402656576,1768752645644,-326.0,0.00018,2]
[402656577,1768752645655,-1245.65001731,0.00018,2]
[402656579,1768752759294,151.0,0.0001497,2]
[402656580,1768752894260,3301.0,0.00027397,120]
[402656581,1768753028202,1231.71563707,0.00027397,120]
[402656582,1768753150472,1438.0,0.00027397,120]
[402656583,1768753292942,1039.784,0.00015254,2]
[402656584,1768753457445,780.96,0.00015266,2]
[402656585,1768753483272,353.0,0.00027397,120]
[402656586,1768753629234,3000.0,0.00015,2]
[402656588,1768753763700,1378.0,0.00027397,120]
[402656589,1768753763879,1378.0,0.00027397,120]
[402656590,1768753764035,1378.0,0.00027397,120]
[402656591,1768753764269,1378.0,0.00027397,120]
[402656592,1768753764415,1378.0,0.00027397,120]
[402656593,1768753764561,1378.0,0.00027397,120]
[402656594,1768753764718,1378.0,0.00027397,120]
[402656595,1768753764871,1378.0,0.00027397,120]
[402656596,1768753765028,1378.0,0.00027397,120]
[402656597,1768753765173,1378.0,0.00027397,120]
[402656598,1768753765344,1378.0,0.00027397,120]
[402656599,1768753765580,1378.0,0.00027397,120]
[402656600,1768753765708,1378.0,0.00027397,120]
[402656601,1768753765871,1378.0,0.00027397,120]
[402656602,1768753766380,1378.0,0.00027397,120]
[402656603,1768753766443,1378.0,0.00027397,120]
[402656604,1768753766655,1378.0,0.00027397,120]
[402656605,1768753767459,1378.0,0.00027397,120]
[402656606,1768753768521,1378.0,0.00027397,120]
[402656607,1768753769881,1378.0,0.00027397,120]
[402656608,1768753771545,1378.0,0.00027397,120]
[402656609,1768753773531,1378.0,0.00027397,120]
[402656610,1768753775792,1378.0,0.00027397,120]
[402656611,1768753778377,1391.8247356,0.00027397,120]
[402656612,1768753829024,645.09,0.0001527,2]
[402656631,1768753831604,-279.0,0.00015464,2]
[402656632,1768753831614,-224.21044542,0.00015538,2]
[402656633,1768753831625,-975.78955458,0.00015538,2]
[402656634,1768753831634,-851.1320933,0.00015539,2]
[402656635,1768753831646,-533.37717395,0.00015539,2]
[402656636,1768753831657,-834.98957114,0.00015539,2]
[402656637,1768753831669,-669.65968716,0.00015539,2]
[402656638,1768753831679,-620.0,0.00015539,2]
[402656639,1768753831690,-300.0,0.00015539,2]
[402656640,1768753831700,-300.0,0.00015539,2]
[402656641,1768753831710,-183.32129454,0.0001554,2]
[402656642,1768753831720,-920.08329829,0.0001554,2]
[402656643,1768753831740,-2978.14261871,0.0001554,2]
[402656644,1768753831749,-300.0,0.00015555,2]
[402656645,1768753831759,-200.0,0.00015556,2]
[402656646,1768753831768,-500.0,0.00015556,2]
[402656647,1768753831778,-500.0,0.00015556,2]
[402656648,1768753831787,-500.0,0.00015556,2]
[402656649,1768753831796,-500.0,0.00015556,2]
[402656650,1768753831806,-500.0,0.00015556,2]
[402656651,1768753831816,-500.0,0.00015556,2]
[402656652,1768753831826,-200.0,0.00015556,2]
[402656653,1768753831836,-248.09039622,0.00015556,2]
[402656654,1768753831847,-151.0,0.00015556,2]
[402656655,1768753831856,-151.0,0.00015556,2]
[402656656,1768753831866,-151.0,0.00015556,2]
[402656657,1768753831878,-151.0,0.00015556,2]
[402656658,1768753831888,-151.0,0.00015556,2]
[402656659,1768753831898,-151.0,0.00015556,2]
[402656660,1768753831910,-151.0,0.00015556,2]
[402656661,1768753831921,-151.0,0.00015556,2]
[402656662,1768753831931,-151.0,0.00015556,2]
[402656663,1768753831945,-151.0,0.00015556,2]
[402656664,1768753831956,-500.0,0.00015556,2]
[402656665,1768753831970,-151.0,0.00015556,2]
[402656666,1768753831983,-500.0,0.00015556,2]
[402656667,1768753831993,-64.77420973,0.00015556,2]
[402656668,1768753832005,-287.06431718,0.00015556,2]
[402656669,1768753832026,-148.16147309,0.00015556,2]
[402656670,1768753832036,-151.0,0.00015556,2]
[402656671,1768753832046,-500.0,0.00015556,2]
[402656672,1768753832057,-151.0,0.00015556,2]